Cogmind - Beta 9.6 @@@ ROGUE MODE // 2020.08.30 @ 13:08:40 Player: scoobysnack1 Result: Destroyed self via exploding Fusion Modulator Performance ------------- Evolutions (0) 0 Regions Visited (1) 200 Robots Destroyed (16) 80 Value Destroyed (238) 238 Prototype IDs (0) 0 Alien Tech Used (0) 0 Bonus (0) 0 TOTAL SCORE: 518 Bonus ------- None Cogmind --------- Core Integrity 0/250 Matter 300/300 Energy 100/100 System Corruption 0% Temperature Cool (24) Movement Walking (120) Location -10/Materials Parts ------- > --- POWER (1) -------- (None) > --- PROPULSION (2) --- Aluminum Leg Aluminum Leg > --- UTILITY (2) ------ Signal Interpreter > --- WEAPON (2) ------- Light Assault Rifle > --- INVENTORY (4) ---- Light Ion Engine Compact Wheel Medium Matter Pod (93) Light Assault Rifle Peak State ------------ > --- POWER ------------ Light Nuclear Core > --- PROPULSION ------- Aluminum Leg Aluminum Leg > --- UTILITY ---------- Signal Interpreter > --- WEAPON ----------- Light Assault Rifle Light Assault Rifle > --- INVENTORY -------- Light Ion Engine Compact Wheel Medium Matter Pod Welding Torch [Rating: 8] Favorites ----------- Power Ion Engine Engine Ion Engine Power Core Light Nuclear Core Propulsion Aluminum Leg Leg Aluminum Leg Utility Signal Interpreter Device Sensor Array Storage Small Storage Unit Processor Signal Interpreter Weapon Assault Rifle Energy Gun EM Pulse Gun Ballistic Gun Assault Rifle Special Weapon Welding Torch Build | -11 -10 ------- Run | Scr Mat Slots Evolved . | . . Power . | . . Propulsion . | . . Utility . | . . Weapon . | . . Parts Attached 20 | 9 11 Power 5 | 2 3 Engine 4 | 2 2 Core 1 | . 1 Reactor . | . . Propulsion 4 | 2 2 Treads . | . . Leg 4 | 2 2 Wheel . | . . Hover . | . . Flight . | . . Utility 4 | 2 2 Device 1 | . 1 Storage 2 | 2 . Processor 1 | . 1 Hackware . | . . Protection . | . . Artifact . | . . Weapon 7 | 3 4 Energy Gun 3 | 2 1 Energy Cannon . | . . Ballistic Gun 3 | 1 2 Ballistic Cannon . | . . Launcher . | . . Special Weapon 1 | . 1 Impact Weapon . | . . Slashing Weapon . | . . Piercing Weapon . | . . Special Melee Weapon . | . . Unidentified Prototypes . | . . Parts Lost 6 | . 6 Power 1 | . 1 Propulsion 1 | . 1 Utility 1 | . 1 Weapon 3 | . 3 Highest Loss Streak 3 | . 3 Average Slot Usage (%) 88 | . 88 Engine 9 | . 9 Core 4 | . 4 Leg 26 | . 26 Device 4 | . 4 Storage 3 | . 3 Processor 10 | . 10 Energy Gun 8 | . 8 Ballistic Gun 18 | . 18 Naked Turns . | . . Heaviest Build 14 | 12 14 Greatest Support 20 | 20 20 Greatest Overweight (x) . | . . Average Overweight (x) . | . . Largest Inventory Capacity 8 | 8 6 Average Capacity 4 | 5 4 Most Carried 6 | 6 6 Average Carried 4 | 3 4 Final Capacity 6 | 6 4 Final Carried 6 | 6 4 Class Distribution -------------------- 77% | Mutant 22% | Scavenger-Mutant Dominant Class ---------------- Mutant | -10/Materials Resources | -11 -10 ----------- Run | Scr Mat Matter Collected 561 | 326 235 Remotely . | . . Salvage Created 466 | 126 340 Parts 34 | 4 30 Haulers Intercepted . | . . Recyclers Shooed 1 | . 1 Parts Field Recycled . | . . Retrieved Matter . | . . Parts Self-Destructed . | . . Prevented . | . . Kills | -11 -10 ------- Run | Scr Mat Combat Hostiles Destroyed 8 | . 8 Guns 5 | . 5 AOE 3 | . 3 Classes Destroyed 6 | 2 4 Worker 2 | 2 . Builder 1 | . 1 Recycler 2 | 1 1 Watcher 3 | . 3 Swarmer 6 | . 6 Grunt 2 | . 2 Best Kill Streak 6 | 2 6 Combat Bots Only 3 | . 3 Max Kills in Single Turn 2 | 1 2 Gunslinging . | . . Exploded 2 | . 2 Melee . | . . Uniques/NPCs Destroyed . | . . Combat | -11 -10 -------- Run | Scr Mat Damage Taken 789 | . 789 Core 250 | . 250 Absorbed by Shields . | . . Core Remaining (%) 100 | 100 . Volleys Fired 57 | 12 45 Largest 2 | 2 2 Hottest 60 | 60 60 Shots Fired 85 | 14 71 Gun 81 | 14 67 Cannon . | . . Launcher . | . . Special 4 | . 4 Kinetic 50 | 12 38 Thermal 11 | 2 9 Explosive . | . . Electromagnetic 24 | . 24 Robot Hit Streak 7 | 7 6 Robot Miss Streak 3 | 1 3 Penetration Max . | . . Secondary Targets 1 | . 1 Max Gunslinging Chain 1 | . 1 Shots Hit Robots 39 | 10 29 Core Hits 23 | 4 19 Critical Hits 2 | 1 1 Critical Kills 1 | 1 . Critical Parts Destroyed 1 | . 1 Melee Attacks . | . . Impact . | . . Slashing . | . . Piercing . | . . Sneak Attacks . | . . Combat Hostiles . | . . Follow-up Attacks . | . . Damage Inflicted 672 | 102 570 Guns 509 | 102 407 Cannons . | . . Explosions 163 | . 163 Melee . | . . Ramming . | . . Kinetic 270 | 81 189 Thermal 208 | 21 187 Explosive . | . . Electromagnetic 194 | . 194 Impact . | . . Slashing . | . . Piercing . | . . Highest Corruption . | . . Average Corruption . | . . Corruption Purged . | . . Overload Shots . | . . Overflow Damage 93 | . 93 Projectiles . | . . Explosions 93 | . 93 Melee . | . . Knockbacks . | . . Impact . | . . Kinetic . | . . Secondary . | . . Self-Inflicted Damage 253 | . 253 Shots 3 | . 3 Rammed . | . . Targets Rammed . | . . Kicked . | . . Crushed . | . . Highest Temperature 118 | . 118 Average Temperature 42 | . 42 Received Heat Transfer 129 | . 129 Siege Activations . | . . Robots Corrupted . | . . Combat Hostiles . | . . Parts Fried . | . . Impact Corruptions . | . . Robots Melted . | . . Combat Hostiles . | . . Parts Melted 1 | . 1 Heat Transferred 300 | 50 250 Parts Sabotaged . | . . Parts Stolen . | . . Parts Stripped . | . . Power Chain Reactions 3 | . 3 Missiles Intercepted . | . . Alert | -11 -10 ------- Run | Scr Mat Peak Influence 270 | 15 270 Average Influence 116 | 4 152 Maximum Alert Level 1 | . 1 Low Security (%) 71 | 100 62 Level 1 28 | . 37 Level 2 . | . . Level 3 . | . . Level 4 . | . . Level 5 . | . . High Security . | . . Max Security . | . . Squads Dispatched . | . . Investigation . | . . Extermination . | . . Reinforcement . | . . Assault . | . . Garrison . | . . Intercept . | . . Construction Impeded . | . . Haulers Reinforced . | . . Stealth | -11 -10 --------- Run | Scr Mat Distress Signals . | . . Communications Jammed . | . . Distress Signals . | . . Times Spotted 12 | . 12 Peak Tracking Total 4 | . 4 Tactical Retreats . | . . Traps | -11 -10 ------- Run | Scr Mat Traps Triggered . | . . Indirectly . | . . Trap Hack Attempts . | . . Triggered . | . . Disarmed . | . . Reprogrammed . | . . Reused . | . . Traps Extracted . | . . Installed . | . . Triggered . | . . Machines | -11 -10 ---------- Run | Scr Mat Machines Disabled 4 | . 4 Max in Single Turn 2 | . 2 Machines Sabotaged . | . . Garrisons Compromised . | . . Overloaded Fab Kills . | . . Fab Network Shutdowns . | . . Hacking | -11 -10 --------- Run | Scr Mat Machines Accessed 1 | . 1 Terminals 1 | . 1 Fabricators . | . . Repair Stations . | . . Recycling Units . | . . Scanalyzers . | . . Garrison Access . | . . Total Hacks 4 | . 4 Successful 4 | . 4 Failed . | . . Catastrophic . | . . Database Lockouts . | . . Manual 1 | . 1 Terminals 4 | . 4 Fabricators . | . . Repair Stations . | . . Recycling Units . | . . Scanalyzers . | . . Garrison Access . | . . Terminal Hacks 4 | . 4 Locate Traps 1 | . 1 Dispatch Records 1 | . 1 Transport Status 1 | . 1 Hauler Manifests 1 | . 1 Fabricator Hacks . | . . Repair Station Hacks . | . . Recycling Unit Hacks . | . . Scanalyzer . | . . Garrison Access Hacks . | . . Unauthorized Hacks . | . . Terminals . | . . Fabricators . | . . Repair Stations . | . . Recycling Units . | . . Scanalyzers . | . . Garrison Access . | . . Data Cores Recovered . | . . Used . | . . Hacking Detections 1 | . 1 Full Trace Events . | . . Feedback Events . | . . Feedback Blocked . | . . Robot Schematics Acquired . | . . Robots Built . | . . Matter . | . . Time . | . . Total Robot Build Rating . | . . Part Schematics Acquired . | . . Parts Built . | . . Matter . | . . Time . | . . Total Part Build Rating . | . . Parts Repaired . | . . Time . | . . Parts Recycled . | . . Recycled Matter . | . . Retrieved Matter . | . . Retrieved Components . | . . Parts Scanalyzed . | . . Part Schematics Acquired . | . . Parts Damaged . | . . Bothacking | -11 -10 ------------ Run | Scr Mat Used RIF Installer . | . . Robots Hacked . | . . Non-combat . | . . Combat . | . . Robot Hacks Applied . | . . Relay Couplers Released . | . . Robots Rewired . | . . Allies Hacked . | . . Hacks Repelled . | . . Allies | -11 -10 -------- Run | Scr Mat Total Allies . | . . Largest Group . | . . Highest-Rated Group . | . . Highest-Rated Ally . | . . Total Orders . | . . Ally Attacks . | . . Total Damage . | . . Kills . | . . Allies Corrupted . | . . Allies Melted . | . . Intel | -11 -10 ------- Run | Scr Mat Robot Analysis Total . | . . Derelict Logs Recovered . | . . Drone Launches . | . . Drone Recoveries . | . . Exploration | -11 -10 ------------- Run | Scr Mat Turns Passed 505 | 125 380 Spaces Moved 255 | 64 191 Core 5 | 5 . Treads . | . . Legs 250 | 59 191 Wheels . | . . Hover . | . . Flight . | . . Fastest Speed 50 | 50 120 Average Speed 118 | 114 120 Slowest Speed 120 | 120 120 Overloaded Moves . | . . Propulsion Burnouts . | . . Robots Hopped . | . . Cave-ins Triggered . | . . Exploration Rate (%) 21 | 6 36 Regions Visited 1 Branch Regions . Pre-discovered Areas . | . . Known Exits Taken . | . . Unknown Exits Taken 1 | 1 . Scrap Searched . | . . Spaces Dug . | . . Terrain Destroyed 25 | . 25 Melee . | . . Projectile . | . . AOE 25 | . 25 Actions | -11 -10 --------- Run | Scr Mat Total 376 | 99 277 Wait 21 | 5 16 Move 254 | 63 191 Hop . | . . Pick Up 10 | 6 4 Fast Attach 13 | 8 5 Attach 3 | . 3 Detach 1 | 1 . Swap 4 | 1 3 Drop 13 | 3 10 Fire 57 | 12 45 Melee . | . . Ram . | . . Kick . | . . Crush . | . . Escape Stasis . | . . Rewire . | . . Trap . | . . Miscellaneous . | . . Route ------- -11/Scrapyard -10/Materials (discovered 2 exits: [*Mat] / *Min) History --------- Turn | Location | Event 7 | -11/Scrapyard | Discovered new exit (range 15) 126 | -11/Scrapyard | Entered Materials 252 | -10/Materials | Discovered new exit (range 12) 274 | -10/Materials | Discovered new exit (range 12) 298 | -10/Materials | Identified exit to Mines 321 | -10/Materials | Build established: Mutant 367 | -10/Materials | Core integrity fell below 50% 395 | -10/Materials | Lost 3 parts (1n1u1w) 506 | -10/Materials | Destroyed self via exploding Fusion Modulator Last Messages --------------- 00390_ Dropped Lgt. Ion Engine. 00391_ U-05 Engineer lays Concrete. 00391_ Acquired Lgt. Nuclear Core. 00392_ Acquired 11 matter. 00392_ U-05 Engineer lays Concrete. 00395_ Acquired Aluminum Leg. 00396_ Acquired 55 matter. 00399_ Dropped Aluminum Leg. 00481_ W-16 Scout destroyed. 00482_ K-01 Serf collects debris. 00486_ Acquired 23 matter. 00491_ Dropped Lgt. Assault Rifle. 00492_ Acquired Lgt. Assault Rifle. 00506_ Fusion Modulator explodes. 00506_ Welding Torch destroyed. 00506_ Destroyed Welding Torch. 00506_ Lgt. Nuclear Core destroyed. 00506_ Destroyed Lgt. Nuclear Core. 00506_ Fusion Modulator explodes. 00506_ U-05 Engineer destroyed. Map ----- +----------------------------------------------------+ | ?????????????????????????????????????????????????? | | ?????????????????????????????????????????????????? | | ?????????????????????????????????????????????????? | | ?????????????????????????????????????????????????? | | ???????????????????????????????###########???????? | | ???????????????????????????????# #???????? | | ???????????????????????????????# #???????? | | ???????????????????????????????# """ """ #???????? | | ???????????????????????????????# """ """ #???????? | | ???????????????????????????????# """ """ #???????? | | ???????????????????????????????# #???????? | | ???????????????????????????????# #???????? | | ???????????????????????????????# #???????? | | ??????????????????????????##???######+########### | | ??????????????????????????? ??????# | | ???????????????????????######+###### | | ???????????????????????# ^ + ########### | | ???????????????????????# # #?????????? | | ???????????????????????# """ """ # #?????????? | | ???????????????????????# """"""""" # #?????????? | | ???????????????????????# """"" + #?????????? | | ???????????????????##### k # +?? "?????? | | ???????????????????# ; # #? ??????? | | ??????????????????##;;;;;;;;;###+### ##+###????? | | ??????????????????# ; # ^ #????? | | ???????????????????#; @ # ^ #????? | | ???????????????????#; !+ ^ #????? | | ??????????????????# ; *#"" !==^""" #????? | | ??????????????????#;; #"R """ #????? | | ????????????????? #; #""* """ # ""?? | | ???????????????" ?#; # = + ? | | ??????????????""???## % # #????? | | ????????????????????########### ######## ##????? | | ?????????????????????????????## ####???? #?????? | | ?????????????????????????????# [ *""#???????????? | | ?????????????????????????????# * "#???????????? | | ?????????????????????????????# [= ["#???????????? | | ?????????????????????????????# > ""#???????????? | | ?????????????????????????????# !"#??#????????? | | ?????????????????????????????# "#??# """"""?? | | ?????????????????????????????# """#??# """"""" | | ?????????????????????????????## ####??# """"""" | | ??????????????????????????????# #?????# """"""" | | ????????????????????########### #?????# """""""? | | ????????????????????# ## #??????? ??? | | ????????????????????# ## ##???????#+#???? | | ????????????????????# # ######### #???? | | ????????????????????# # ^ #???? | | ????????????????????# + #???? | | ????????????????????# # ^^ ##### | +----------------------------------------------------+ Best States ------------- Heat Dissipation 25 Energy Generation 14 Energy Capacity 250 Matter Stores 300 Matter Capacity 300 Sight Range 16 Robot Scan Range 10 Terrain Scan Density 10 Evasion (%) 40 Item Schematics ----------------- None Robot Schematics ------------------ None Fabricated ------------ Nothing Alien Tech Used ----------------- None Achievements -------------- None Challenges ------------ None Game ------ Seed BackupThrusterFlail Manual? 0 Play Time 00:15:19 Cumulative 8.9 hours Start 2020.08.30 @ 12:55:05 End 2020.08.30 @ 13:08:40 Sessions 1 Manual Loads 0 Difficulty Rogue Special Mode None Game No. 9 Rogue 9 Adventurer 0 Explorer 0 Win Type - Total 0 Types 0/0/0/0/0/0/0 Lore% 3 Gallery% 11 Achievement% 10 Wizard Run 0 Options --------- ASCII 0 Keyboard 0 Movement Mouse Keybinds 0 Fullscreen 1 Font 18/SmallcapsGlow Map View 76x50 Tactical HUD 1 Map Filters NONE Filters NONE Steam 1 RUN: a3174550-1e35-42ea-9b09-b5ef9acbd11d